[Event "Titled Tuesday Blitz November 29 Late 2022"]
[White "Yurovskykh, Oleksandr"]
[Black "Mahdavi, Reza"]
[WhiteFideId "14134020"]
[BlackFideId "12595926"]
[WhiteElo "2265"]
[BlackElo "2240"]
[Result "0-1"]
[Round "02"]
[TimeControl "180+1"]
[Date "2022.11.30"]
[WhiteClock "0:00:04"]
[BlackClock "0:00:40"]

1. d4 {[%clk 0:03:00]}  Nf6 {[%clk 0:02:58]} 2. Nf3 {[%clk 0:03:00]}  e6 {[%clk 0:02:39]} 3. Bf4 {[%clk 0:02:59]}  b6 {[%clk 0:02:27]} 4. e3 {[%clk 0:02:58]}  Bb7 {[%clk 0:02:28]} 5. Bd3 {[%clk 0:02:58]}  Be7 {[%clk 0:02:28]} 6. h3 {[%clk 0:02:59]}  O-O {[%clk 0:02:28]} 7. O-O {[%clk 0:02:59]}  c5 {[%clk 0:02:28]} 8. c3 {[%clk 0:02:59]}  d5 {[%clk 0:02:27]} 9. Nbd2 {[%clk 0:02:59]}  Nc6 {[%clk 0:02:25]} 10. Qe2 {[%clk 0:02:55]}  Re8 {[%clk 0:02:19]} 11. Rad1 {[%clk 0:02:55]}  a6 {[%clk 0:02:19]} 12. Rfe1 {[%clk 0:02:46]}  h6 {[%clk 0:02:14]} 13. dxc5 {[%clk 0:02:19]}  bxc5 {[%clk 0:02:03]} 14. e4 {[%clk 0:02:19]}  Qb6 {[%clk 0:02:04]} 15. b3 {[%clk 0:02:14]}  Rad8 {[%clk 0:02:00]} 16. exd5 {[%clk 0:02:05]}  exd5 {[%clk 0:01:59]} 17. Qf1 {[%clk 0:02:05]}  Qa5 {[%clk 0:01:57]} 18. c4 {[%clk 0:02:00]}  Nb4 {[%clk 0:01:51]} 19. Bb1 {[%clk 0:01:54]}  Nxa2 {[%clk 0:01:50]} 20. cxd5 {[%clk 0:01:51]}  Nc3 {[%clk 0:01:48]} 21. Nc4 {[%clk 0:01:51]}  Qb5 {[%clk 0:01:42]} 22. Rc1 {[%clk 0:01:43]}  Nxb1 {[%clk 0:01:42]} 23. Rxb1 {[%clk 0:01:41]}  Nxd5 {[%clk 0:01:42]} 24. Bg3 {[%clk 0:01:31]}  Bf8 {[%clk 0:01:40]} 25. Rxe8 {[%clk 0:01:26]}  Rxe8 {[%clk 0:01:40]} 26. Nd6 {[%clk 0:01:25]}  Bxd6 {[%clk 0:01:25]} 27. Bxd6 {[%clk 0:01:25]}  Qc6 {[%clk 0:01:24]} 28. Bg3 {[%clk 0:01:22]}  Qb6 {[%clk 0:01:22]} 29. Qc1 {[%clk 0:01:17]}  Nb4 {[%clk 0:01:19]} 30. Ne5 {[%clk 0:01:07]}  f6 {[%clk 0:01:06]} 31. Nc4 {[%clk 0:01:00]}  Qc6 {[%clk 0:01:06]} 32. f3 {[%clk 0:01:00]}  Re2 {[%clk 0:01:05]} 33. Qf4 {[%clk 0:00:50]}  Nd3 {[%clk 0:00:59]} 34. Qf5 {[%clk 0:00:50]}  Qd5 {[%clk 0:00:55]} 35. Qxd5+ {[%clk 0:00:42]}  Bxd5 {[%clk 0:00:56]} 36. Rd1 {[%clk 0:00:42]}  Bxc4 {[%clk 0:00:56]} 37. bxc4 {[%clk 0:00:42]}  Nb2 {[%clk 0:00:56]} 38. Rd6 {[%clk 0:00:25]}  a5 {[%clk 0:00:54]} 39. Rc6 {[%clk 0:00:20]}  a4 {[%clk 0:00:52]} 40. Rxc5 {[%clk 0:00:18]}  a3 {[%clk 0:00:53]} 41. Ra5 {[%clk 0:00:18]}  Nxc4 {[%clk 0:00:53]} 42. Ra8+ {[%clk 0:00:19]}  Kh7 {[%clk 0:00:53]} 43. Bf2 {[%clk 0:00:16]}  Rb2 {[%clk 0:00:51]} 44. Bd4 {[%clk 0:00:15]}  Rc2 {[%clk 0:00:51]} 45. Ra4 {[%clk 0:00:15]}  Kg6 {[%clk 0:00:50]} 46. Kh2 {[%clk 0:00:15]}  a2 {[%clk 0:00:49]} 47. Kg3 {[%clk 0:00:15]}  h5 {[%clk 0:00:47]} 48. h4 {[%clk 0:00:15]}  Kh6 {[%clk 0:00:46]} 49. Ba1 {[%clk 0:00:15]}  Ne3 {[%clk 0:00:45]} 50. Bd4 {[%clk 0:00:15]}  Rxg2+ {[%clk 0:00:44]} 51. Kf4 {[%clk 0:00:14]}  Nd5+ {[%clk 0:00:43]} 52. Kf5 {[%clk 0:00:11]}  Ne7+ {[%clk 0:00:44]} 53. Ke6 {[%clk 0:00:12]}  Ng6 {[%clk 0:00:44]} 54. Kf7 {[%clk 0:00:12]}  Nxh4 {[%clk 0:00:41]} 55. Ra8 {[%clk 0:00:12]}  Kh7 {[%clk 0:00:39]} 56. Rg8 {[%clk 0:00:08]}  Nf5 {[%clk 0:00:39]} 57. Bc3 {[%clk 0:00:04]}  Nh6+ {[%clk 0:00:40]} 0-1


[Site "https://www.chess.com"]

[Event "Titled Tuesday Blitz November 29 Late 2022"]
[White "Zajic, Milan"]
[Black "Miller, Luke C"]
[WhiteFideId "912336"]
[BlackFideId "2096935"]
[WhiteElo "2445"]
[BlackElo "2396"]
[Result "1-0"]
[Round "02"]
[TimeControl "180+1"]
[Date "2022.11.30"]
[WhiteClock "0:01:46"]
[BlackClock "0:00:51"]

1. e4 {[%clk 0:02:53]}  c5 {[%clk 0:02:57]} 2. Nf3 {[%clk 0:02:49]}  d6 {[%clk 0:02:57]} 3. d4 {[%clk 0:02:46]}  cxd4 {[%clk 0:02:58]} 4. Qxd4 {[%clk 0:02:45]}  Nf6 {[%clk 0:02:54]} 5. h3 {[%clk 0:02:44]}  Nc6 {[%clk 0:02:49]} 6. Qe3 {[%clk 0:02:44]}  g6 {[%clk 0:02:47]} 7. c4 {[%clk 0:02:40]}  Bg7 {[%clk 0:02:46]} 8. Nc3 {[%clk 0:02:38]}  O-O {[%clk 0:02:45]} 9. Be2 {[%clk 0:02:35]}  e6 {[%clk 0:02:40]} 10. O-O {[%clk 0:02:33]}  Qc7 {[%clk 0:02:35]} 11. Rd1 {[%clk 0:02:21]}  a6 {[%clk 0:02:35]} 12. b3 {[%clk 0:02:20]}  Rd8 {[%clk 0:02:04]} 13. Bb2 {[%clk 0:02:10]}  Bd7 {[%clk 0:01:59]} 14. Rac1 {[%clk 0:02:10]}  Ne5 {[%clk 0:01:56]} 15. Nd4 {[%clk 0:02:07]}  Rac8 {[%clk 0:01:44]} 16. f4 {[%clk 0:02:04]}  Nc6 {[%clk 0:01:42]} 17. Nd5 {[%clk 0:02:05]}  exd5 {[%clk 0:01:42]} 18. cxd5 {[%clk 0:02:06]}  Re8 {[%clk 0:01:35]} 19. dxc6 {[%clk 0:02:05]}  bxc6 {[%clk 0:01:32]} 20. Bxa6 {[%clk 0:02:05]}  Ra8 {[%clk 0:01:32]} 21. Nb5 {[%clk 0:02:02]}  Qa5 {[%clk 0:01:29]} 22. Nxd6 {[%clk 0:02:01]}  Qxa6 {[%clk 0:01:26]} 23. Nxe8 {[%clk 0:02:00]}  Bxe8 {[%clk 0:01:20]} 24. a4 {[%clk 0:01:59]}  Nd5 {[%clk 0:01:08]} 25. exd5 {[%clk 0:01:51]}  Bxb2 {[%clk 0:01:06]} 26. Rc2 {[%clk 0:01:52]}  Bf6 {[%clk 0:01:01]} 27. dxc6 {[%clk 0:01:49]}  Rc8 {[%clk 0:00:51]} 28. c7 {[%clk 0:01:46]} 1-0


[Site "https://www.chess.com"]

[Event "Titled Tuesday Blitz November 29 Late 2022"]
[White "Abdrlauf, Elham"]
[Black "Bortnyk, Olexandr"]
[WhiteFideId "1533533"]
[BlackFideId "14120828"]
[WhiteElo "2785"]
[BlackElo "3056"]
[Result "1-0"]
[Round "03"]
[TimeControl "180+1"]
[Date "2022.11.30"]
[WhiteClock "0:00:34"]
[BlackClock "0:00:02"]

1. e4 {[%clk 0:03:00]}  Nf6 {[%clk 0:03:00]} 2. e5 {[%clk 0:03:00]}  Nd5 {[%clk 0:03:00]} 3. c4 {[%clk 0:03:01]}  Nb6 {[%clk 0:03:00]} 4. d4 {[%clk 0:03:02]}  d6 {[%clk 0:03:01]} 5. Nf3 {[%clk 0:03:03]}  Nc6 {[%clk 0:02:33]} 6. exd6 {[%clk 0:03:03]}  exd6 {[%clk 0:02:32]} 7. h3 {[%clk 0:03:02]}  Be7 {[%clk 0:02:32]} 8. Nc3 {[%clk 0:03:03]}  O-O {[%clk 0:02:32]} 9. Be2 {[%clk 0:03:03]}  Bf5 {[%clk 0:02:31]} 10. O-O {[%clk 0:03:03]}  Bf6 {[%clk 0:02:32]} 11. Be3 {[%clk 0:02:54]}  d5 {[%clk 0:02:23]} 12. c5 {[%clk 0:02:11]}  Nc4 {[%clk 0:02:22]} 13. Bc1 {[%clk 0:02:12]}  b6 {[%clk 0:02:15]} 14. b3 {[%clk 0:01:45]}  N4a5 {[%clk 0:02:10]} 15. Ba3 {[%clk 0:01:44]}  a6 {[%clk 0:01:40]} 16. cxb6 {[%clk 0:01:35]}  Re8 {[%clk 0:01:03]} 17. bxc7 {[%clk 0:01:35]}  Qd7 {[%clk 0:01:04]} 18. Rc1 {[%clk 0:01:28]}  Bxh3 {[%clk 0:00:47]} 19. gxh3 {[%clk 0:01:23]}  Qxh3 {[%clk 0:00:48]} 20. Qd3 {[%clk 0:01:01]}  Nc4 {[%clk 0:00:19]} 21. Nxd5 {[%clk 0:00:40]}  Qg4+ {[%clk 0:00:17]} 22. Kh1 {[%clk 0:00:41]}  Qh5+ {[%clk 0:00:18]} 23. Nh2 {[%clk 0:00:41]}  Rxe2 {[%clk 0:00:07]} 24. Nxf6+ {[%clk 0:00:39]}  gxf6 {[%clk 0:00:08]} 25. Rxc4 {[%clk 0:00:37]}  Kh8 {[%clk 0:00:04]} 26. Rxc6 {[%clk 0:00:34]}  Rc8 {[%clk 0:00:02]} 27. Qf3 {[%clk 0:00:34]}  Qb5 {[%clk 0:00:02]} 28. Qxf6+ {[%clk 0:00:34]} 1-0


[Site "https://www.chess.com"]

[Event "Titled Tuesday Blitz November 29 Late 2022"]
[White "Adury, Anant"]
[Black "Meduri, Aakaash"]
[WhiteFideId "30964687"]
[BlackFideId "2032252"]
[WhiteElo "2164"]
[BlackElo "2113"]
[Result "0-1"]
[Round "03"]
[TimeControl "180+1"]
[Date "2022.11.30"]
[WhiteClock "0:00:18"]
[BlackClock "0:00:15"]

1. d4 {[%clk 0:03:00]}  d5 {[%clk 0:02:55]} 2. c4 {[%clk 0:03:01]}  c6 {[%clk 0:02:55]} 3. Nc3 {[%clk 0:03:00]}  Nf6 {[%clk 0:02:55]} 4. Nf3 {[%clk 0:02:59]}  e6 {[%clk 0:02:55]} 5. cxd5 {[%clk 0:02:57]}  exd5 {[%clk 0:02:54]} 6. Bg5 {[%clk 0:02:57]}  h6 {[%clk 0:02:43]} 7. Bxf6 {[%clk 0:02:56]}  Qxf6 {[%clk 0:02:43]} 8. e3 {[%clk 0:02:57]}  Bd6 {[%clk 0:02:33]} 9. Bd3 {[%clk 0:02:57]}  O-O {[%clk 0:02:33]} 10. h3 {[%clk 0:02:54]}  Re8 {[%clk 0:02:08]} 11. O-O {[%clk 0:02:54]}  Nd7 {[%clk 0:02:07]} 12. e4 {[%clk 0:02:54]}  dxe4 {[%clk 0:02:05]} 13. Nxe4 {[%clk 0:02:55]}  Qe7 {[%clk 0:02:03]} 14. Re1 {[%clk 0:02:52]}  Bc7 {[%clk 0:02:02]} 15. Nf6+ {[%clk 0:02:48]}  Nxf6 {[%clk 0:01:59]} 16. Rxe7 {[%clk 0:02:47]}  Rxe7 {[%clk 0:02:00]} 17. Bc4 {[%clk 0:02:44]}  Bf5 {[%clk 0:01:58]} 18. Qf1 {[%clk 0:02:29]}  Rd8 {[%clk 0:01:54]} 19. Re1 {[%clk 0:02:28]}  Red7 {[%clk 0:01:54]} 20. Ne5 {[%clk 0:02:26]}  Bxe5 {[%clk 0:01:53]} 21. dxe5 {[%clk 0:02:27]}  Nd5 {[%clk 0:01:53]} 22. g4 {[%clk 0:02:22]}  Bh7 {[%clk 0:01:36]} 23. f4 {[%clk 0:02:19]}  Nb6 {[%clk 0:01:36]} 24. Bb3 {[%clk 0:02:15]}  Bd3 {[%clk 0:01:34]} 25. Qf3 {[%clk 0:02:00]}  Bc4 {[%clk 0:01:34]} 26. f5 {[%clk 0:01:54]}  Rd3 {[%clk 0:01:21]} 27. Qf4 {[%clk 0:00:39]}  Bxb3 {[%clk 0:01:01]} 28. axb3 {[%clk 0:00:37]}  R8d4 {[%clk 0:01:01]} 29. Qf1 {[%clk 0:00:31]}  Nd5 {[%clk 0:00:50]} 30. e6 {[%clk 0:00:31]}  Nf6 {[%clk 0:00:23]} 31. e7 {[%clk 0:00:11]}  Ne8 {[%clk 0:00:23]} 32. Re2 {[%clk 0:00:11]}  Rd1 {[%clk 0:00:22]} 33. Re1 {[%clk 0:00:11]}  R1d2 {[%clk 0:00:23]} 34. Re2 {[%clk 0:00:11]}  Rd1 {[%clk 0:00:21]} 35. Re1 {[%clk 0:00:11]}  R1d3 {[%clk 0:00:22]} 36. Kg2 {[%clk 0:00:10]}  Rxb3 {[%clk 0:00:21]} 37. Re2 {[%clk 0:00:10]}  Rbd3 {[%clk 0:00:17]} 38. Qf2 {[%clk 0:00:11]}  Rd6 {[%clk 0:00:17]} 39. Re3 {[%clk 0:00:11]}  Rd2 {[%clk 0:00:17]} 40. Re2 {[%clk 0:00:11]}  R2d3 {[%clk 0:00:18]} 41. Qe1 {[%clk 0:00:12]}  b6 {[%clk 0:00:15]} 42. Qf2 {[%clk 0:00:12]}  Rd1 {[%clk 0:00:15]} 43. h4 {[%clk 0:00:13]}  R1d4 {[%clk 0:00:15]} 44. g5 {[%clk 0:00:13]}  hxg5 {[%clk 0:00:15]} 45. hxg5 {[%clk 0:00:14]}  Rg4+ {[%clk 0:00:15]} 46. Kh3 {[%clk 0:00:14]}  Rxg5 {[%clk 0:00:16]} 47. Qh4 {[%clk 0:00:14]}  Rh6 {[%clk 0:00:16]} 48. Qxh6 {[%clk 0:00:14]}  gxh6 {[%clk 0:00:17]} 49. Rd2 {[%clk 0:00:14]}  Rxf5 {[%clk 0:00:16]} 50. Rd8 {[%clk 0:00:14]}  Re5 {[%clk 0:00:15]} 51. Rxe8+ {[%clk 0:00:15]}  Kg7 {[%clk 0:00:16]} 52. Kg4 {[%clk 0:00:10]}  Re6 {[%clk 0:00:14]} 53. Kf5 {[%clk 0:00:10]}  a5 {[%clk 0:00:13]} 54. b3 {[%clk 0:00:10]}  b5 {[%clk 0:00:13]} 55. Ra8 {[%clk 0:00:10]}  Rxe7 {[%clk 0:00:13]} 56. Rxa5 {[%clk 0:00:11]}  Re6 {[%clk 0:00:11]} 57. Ra8 {[%clk 0:00:10]}  Rf6+ {[%clk 0:00:12]} 58. Ke5 {[%clk 0:00:11]}  Rg6 {[%clk 0:00:12]} 59. Kd4 {[%clk 0:00:11]}  h5 {[%clk 0:00:13]} 60. b4 {[%clk 0:00:11]}  h4 {[%clk 0:00:13]} 61. Kc5 {[%clk 0:00:11]}  h3 {[%clk 0:00:13]} 62. Ra1 {[%clk 0:00:12]}  h2 {[%clk 0:00:13]} 63. Rh1 {[%clk 0:00:13]}  Rh6 {[%clk 0:00:13]} 64. Kd4 {[%clk 0:00:13]}  Kf8 {[%clk 0:00:13]} 65. Ke3 {[%clk 0:00:14]}  Ke7 {[%clk 0:00:14]} 66. Ke2 {[%clk 0:00:15]}  Kd6 {[%clk 0:00:14]} 67. Kf2 {[%clk 0:00:16]}  Kd5 {[%clk 0:00:14]} 68. Kg2 {[%clk 0:00:17]}  Kc4 {[%clk 0:00:15]} 69. Rxh2 {[%clk 0:00:18]}  Rxh2+ {[%clk 0:00:15]} 0-1


[Site "https://www.chess.com"]

[Event "Titled Tuesday Blitz November 29 Late 2022"]
[White "Albornoz Cabrera, Carlos Daniel"]
[Black "Deac, Bogdan-Daniel"]
[WhiteFideId "3518736"]
[BlackFideId "1226380"]
[WhiteElo "2803"]
[BlackElo "3072"]
[Result "1-0"]
[Round "03"]
[TimeControl "180+1"]
[Date "2022.11.30"]
[WhiteClock "0:00:17"]
[BlackClock "0:00:04"]

1. d4 {[%clk 0:03:00]}  Nf6 {[%clk 0:02:58]} 2. c4 {[%clk 0:03:00]}  e6 {[%clk 0:02:58]} 3. Nf3 {[%clk 0:03:01]}  d5 {[%clk 0:02:58]} 4. g3 {[%clk 0:03:01]}  dxc4 {[%clk 0:02:58]} 5. Bg2 {[%clk 0:03:01]}  Bd7 {[%clk 0:02:59]} 6. O-O {[%clk 0:03:01]}  Bc6 {[%clk 0:02:59]} 7. a4 {[%clk 0:03:01]}  a6 {[%clk 0:02:41]} 8. Nc3 {[%clk 0:02:56]}  Bb4 {[%clk 0:02:31]} 9. Qc2 {[%clk 0:02:41]}  Nbd7 {[%clk 0:02:22]} 10. Rd1 {[%clk 0:02:28]}  O-O {[%clk 0:01:36]} 11. Na2 {[%clk 0:02:16]}  Bd6 {[%clk 0:01:35]} 12. Qxc4 {[%clk 0:02:09]}  Nb6 {[%clk 0:01:26]} 13. Qc2 {[%clk 0:01:58]}  Bxa4 {[%clk 0:01:18]} 14. b3 {[%clk 0:01:59]}  Bc6 {[%clk 0:01:19]} 15. Nc3 {[%clk 0:01:58]}  Bb4 {[%clk 0:00:48]} 16. Bg5 {[%clk 0:01:52]}  h6 {[%clk 0:00:43]} 17. Bxf6 {[%clk 0:01:32]}  Qxf6 {[%clk 0:00:44]} 18. Ne4 {[%clk 0:01:22]}  Bxe4 {[%clk 0:00:34]} 19. Qxe4 {[%clk 0:01:22]}  c6 {[%clk 0:00:32]} 20. Ne5 {[%clk 0:01:21]}  Rfd8 {[%clk 0:00:28]} 21. e3 {[%clk 0:01:13]}  Qe7 {[%clk 0:00:26]} 22. h4 {[%clk 0:01:12]}  Nd5 {[%clk 0:00:26]} 23. Qg4 {[%clk 0:01:07]}  Nf6 {[%clk 0:00:24]} 24. Qf3 {[%clk 0:01:05]}  Rac8 {[%clk 0:00:21]} 25. g4 {[%clk 0:01:04]}  Nd7 {[%clk 0:00:20]} 26. Nd3 {[%clk 0:00:58]}  Bd6 {[%clk 0:00:18]} 27. Qh3 {[%clk 0:00:56]}  e5 {[%clk 0:00:18]} 28. g5 {[%clk 0:00:49]}  hxg5 {[%clk 0:00:15]} 29. hxg5 {[%clk 0:00:50]}  e4 {[%clk 0:00:15]} 30. g6 {[%clk 0:00:44]}  fxg6 {[%clk 0:00:13]} 31. Nb2 {[%clk 0:00:42]}  Nf6 {[%clk 0:00:12]} 32. Nc4 {[%clk 0:00:42]}  Bc7 {[%clk 0:00:10]} 33. Bf1 {[%clk 0:00:32]}  Kf7 {[%clk 0:00:09]} 34. Ne5+ {[%clk 0:00:29]}  Bxe5 {[%clk 0:00:08]} 35. Bc4+ {[%clk 0:00:29]}  Nd5 {[%clk 0:00:06]} 36. dxe5 {[%clk 0:00:28]}  Qxe5 {[%clk 0:00:07]} 37. Rd4 {[%clk 0:00:24]}  c5 {[%clk 0:00:04]} 38. Rxd5 {[%clk 0:00:20]}  Rxd5 {[%clk 0:00:04]} 39. Bxd5+ {[%clk 0:00:19]}  Kf6 {[%clk 0:00:02]} 40. Qxc8 {[%clk 0:00:19]}  Qxa1+ {[%clk 0:00:02]} 41. Kg2 {[%clk 0:00:20]}  Qe5 {[%clk 0:00:03]} 42. Qf8+ {[%clk 0:00:20]}  Kg5 {[%clk 0:00:04]} 43. Qd8+ {[%clk 0:00:18]}  Kh6 {[%clk 0:00:03]} 44. Qh4+ {[%clk 0:00:17]}  Qh5 {[%clk 0:00:03]} 45. Qxh5+ {[%clk 0:00:17]}  gxh5 {[%clk 0:00:04]} 46. Bxb7 {[%clk 0:00:18]}  a5 {[%clk 0:00:04]} 47. Bxe4 {[%clk 0:00:17]} 1-0


[Site "https://www.chess.com"]

[Event "Titled Tuesday Blitz November 29 Late 2022"]
[White "Arbunic Castro, Giovanna"]
[Black "Sanchez, Robert"]
[WhiteFideId "3400549"]
[BlackFideId "2034360"]
[WhiteElo "1932"]
[BlackElo "2323"]
[Result "0-1"]
[Round "03"]
[TimeControl "180+1"]
[Date "2022.11.30"]
[WhiteClock "0:00:01"]
[BlackClock "0:01:10"]

1. e4 {[%clk 0:03:00]}  d5 {[%clk 0:02:59]} 2. exd5 {[%clk 0:02:59]}  Qxd5 {[%clk 0:02:59]} 3. Nc3 {[%clk 0:02:59]}  Qe6+ {[%clk 0:02:59]} 4. Be2 {[%clk 0:02:57]}  Qg6 {[%clk 0:02:59]} 5. Bf3 {[%clk 0:02:55]}  Nc6 {[%clk 0:02:59]} 6. Nge2 {[%clk 0:02:54]}  e5 {[%clk 0:02:59]} 7. d3 {[%clk 0:02:53]}  Bd7 {[%clk 0:02:59]} 8. O-O {[%clk 0:02:52]}  O-O-O {[%clk 0:02:59]} 9. a3 {[%clk 0:02:31]}  f5 {[%clk 0:02:59]} 10. b4 {[%clk 0:02:28]}  Nf6 {[%clk 0:02:55]} 11. b5 {[%clk 0:02:26]}  Ne7 {[%clk 0:02:52]} 12. Be3 {[%clk 0:02:02]}  Kb8 {[%clk 0:02:52]} 13. a4 {[%clk 0:01:58]}  Nc8 {[%clk 0:02:37]} 14. g3 {[%clk 0:01:20]}  h5 {[%clk 0:02:34]} 15. a5 {[%clk 0:01:17]}  h4 {[%clk 0:02:31]} 16. b6 {[%clk 0:01:15]}  cxb6 {[%clk 0:02:28]} 17. axb6 {[%clk 0:01:14]}  a6 {[%clk 0:02:28]} 18. d4 {[%clk 0:00:53]}  e4 {[%clk 0:02:16]} 19. Bf4+ {[%clk 0:00:52]}  Bd6 {[%clk 0:02:16]} 20. Bg2 {[%clk 0:00:43]}  hxg3 {[%clk 0:02:10]} 21. fxg3 {[%clk 0:00:41]}  Ng4 {[%clk 0:02:08]} 22. h3 {[%clk 0:00:38]}  Nh6 {[%clk 0:01:49]} 23. Na4 {[%clk 0:00:32]}  Bxa4 {[%clk 0:01:41]} 24. Rxa4 {[%clk 0:00:30]}  Bxf4 {[%clk 0:01:41]} 25. Nxf4 {[%clk 0:00:26]}  Qxg3 {[%clk 0:01:38]} 26. Qa1 {[%clk 0:00:18]}  Qe3+ {[%clk 0:01:35]} 27. Kh1 {[%clk 0:00:16]}  Ng4 {[%clk 0:01:28]} 28. Rxa6 {[%clk 0:00:13]}  bxa6 {[%clk 0:01:28]} 29. Qxa6 {[%clk 0:00:13]}  Nf2+ {[%clk 0:01:18]} 30. Kg1 {[%clk 0:00:07]}  Nxh3+ {[%clk 0:01:11]} 31. Kh2 {[%clk 0:00:01]}  Nxf4+ {[%clk 0:01:10]} 0-1


[Site "https://www.chess.com"]

[Event "Titled Tuesday Blitz November 29 Late 2022"]
[White "Battlecruiser_Operational"]
[Black "Goncalves, Davi Sulzbacher"]
[BlackFideId "2154510"]
[WhiteElo "2156"]
[BlackElo "2182"]
[Result "1-0"]
[Round "03"]
[TimeControl "180+1"]
[Date "2022.11.30"]
[WhiteClock "0:00:11"]
[BlackClock "0:00:13"]

1. d4 {[%clk 0:03:00]}  Nf6 {[%clk 0:02:59]} 2. c4 {[%clk 0:03:01]}  g6 {[%clk 0:02:59]} 3. Nc3 {[%clk 0:03:01]}  d5 {[%clk 0:03:00]} 4. cxd5 {[%clk 0:03:02]}  Nxd5 {[%clk 0:03:00]} 5. e4 {[%clk 0:03:02]}  Nxc3 {[%clk 0:03:01]} 6. bxc3 {[%clk 0:03:03]}  Bg7 {[%clk 0:03:01]} 7. Bc4 {[%clk 0:03:03]}  c5 {[%clk 0:03:01]} 8. Ne2 {[%clk 0:03:03]}  Nc6 {[%clk 0:03:01]} 9. Be3 {[%clk 0:03:03]}  O-O {[%clk 0:03:02]} 10. O-O {[%clk 0:03:03]}  Qc7 {[%clk 0:03:02]} 11. Rc1 {[%clk 0:03:02]}  Rd8 {[%clk 0:03:01]} 12. Bf4 {[%clk 0:03:00]}  Be5 {[%clk 0:02:54]} 13. Bg3 {[%clk 0:02:53]}  Bxg3 {[%clk 0:02:49]} 14. fxg3 {[%clk 0:02:43]}  e6 {[%clk 0:02:49]} 15. Qd2 {[%clk 0:02:36]}  b6 {[%clk 0:02:38]} 16. h4 {[%clk 0:02:29]}  Bb7 {[%clk 0:02:26]} 17. Qe3 {[%clk 0:02:23]}  Rac8 {[%clk 0:02:23]} 18. h5 {[%clk 0:02:20]}  Qd7 {[%clk 0:01:32]} 19. hxg6 {[%clk 0:01:38]}  hxg6 {[%clk 0:01:31]} 20. d5 {[%clk 0:01:25]}  Ne5 {[%clk 0:01:19]} 21. dxe6 {[%clk 0:01:17]}  Nxc4 {[%clk 0:01:07]} 22. exd7 {[%clk 0:01:12]}  Nxe3 {[%clk 0:01:07]} 23. dxc8=Q {[%clk 0:01:12]}  Bxc8 {[%clk 0:00:55]} 24. Rf3 {[%clk 0:01:07]}  Nc4 {[%clk 0:00:54]} 25. Nf4 {[%clk 0:01:05]}  Bb7 {[%clk 0:00:24]} 26. Nd5 {[%clk 0:00:48]}  Nd2 {[%clk 0:00:23]} 27. Rd3 {[%clk 0:00:37]}  Nxe4 {[%clk 0:00:14]} 28. Ne7+ {[%clk 0:00:29]}  Kf8 {[%clk 0:00:14]} 29. Rxd8+ {[%clk 0:00:27]}  Kxe7 {[%clk 0:00:15]} 30. Rb8 {[%clk 0:00:27]}  Bd5 {[%clk 0:00:14]} 31. c4 {[%clk 0:00:27]}  Bc6 {[%clk 0:00:14]} 32. g4 {[%clk 0:00:22]}  Nd6 {[%clk 0:00:14]} 33. Rc3 {[%clk 0:00:19]}  Kd7 {[%clk 0:00:13]} 34. Ra3 {[%clk 0:00:18]}  Nxc4 {[%clk 0:00:09]} 35. Rxa7+ {[%clk 0:00:17]}  Kd6 {[%clk 0:00:09]} 36. Rxf7 {[%clk 0:00:17]}  b5 {[%clk 0:00:09]} 37. Rf6+ {[%clk 0:00:17]}  Kd5 {[%clk 0:00:09]} 38. Rd8+ {[%clk 0:00:17]}  Ke5 {[%clk 0:00:07]} 39. Rxc6 {[%clk 0:00:17]}  Ne3 {[%clk 0:00:07]} 40. Rxc5+ {[%clk 0:00:15]}  Kf4 {[%clk 0:00:08]} 41. Rf8+ {[%clk 0:00:15]}  Kxg4 {[%clk 0:00:08]} 42. Rxb5 {[%clk 0:00:15]}  Nd1 {[%clk 0:00:08]} 43. Rb4+ {[%clk 0:00:15]}  Kg5 {[%clk 0:00:07]} 44. Rb3 {[%clk 0:00:15]}  Kg4 {[%clk 0:00:06]} 45. Rf1 {[%clk 0:00:15]}  g5 {[%clk 0:00:06]} 46. Rxd1 {[%clk 0:00:14]}  Kh4 {[%clk 0:00:06]} 47. Rd4+ {[%clk 0:00:14]}  g4 {[%clk 0:00:07]} 48. a4 {[%clk 0:00:13]}  Kg5 {[%clk 0:00:07]} 49. a5 {[%clk 0:00:13]}  Kf5 {[%clk 0:00:08]} 50. Rdb4 {[%clk 0:00:12]}  Kg5 {[%clk 0:00:09]} 51. a6 {[%clk 0:00:13]}  Kh4 {[%clk 0:00:09]} 52. a7 {[%clk 0:00:12]}  Kg5 {[%clk 0:00:10]} 53. a8=Q {[%clk 0:00:12]}  Kh4 {[%clk 0:00:11]} 54. Qa3 {[%clk 0:00:12]}  Kg5 {[%clk 0:00:12]} 55. Qc1+ {[%clk 0:00:12]}  Kh4 {[%clk 0:00:13]} 56. Rxg4+ {[%clk 0:00:11]}  Kh5 {[%clk 0:00:13]} 57. Qg5# {[%clk 0:00:11]} 1-0


[Site "https://www.chess.com"]

[Event "Titled Tuesday Blitz November 29 Late 2022"]
[White "Bayo Milagro, Alvaro"]
[Black "Weisz, Bryan"]
[WhiteFideId "22275240"]
[BlackFideId "30934133"]
[WhiteElo "2270"]
[BlackElo "2287"]
[Result "1-0"]
[Round "03"]
[TimeControl "180+1"]
[Date "2022.11.30"]
[WhiteClock "0:00:10"]
[BlackClock "0:00:01"]

1. Nf3 {[%clk 0:02:17]}  g6 {[%clk 0:02:59]} 2. e4 {[%clk 0:02:16]}  Bg7 {[%clk 0:02:59]} 3. d4 {[%clk 0:02:16]}  d6 {[%clk 0:02:49]} 4. c4 {[%clk 0:02:11]}  Nf6 {[%clk 0:02:47]} 5. Nc3 {[%clk 0:02:10]}  O-O {[%clk 0:02:47]} 6. Be2 {[%clk 0:02:09]}  e5 {[%clk 0:02:44]} 7. d5 {[%clk 0:02:08]}  a5 {[%clk 0:02:42]} 8. Bg5 {[%clk 0:02:06]}  Qe8 {[%clk 0:02:41]} 9. Nd2 {[%clk 0:02:05]}  Nfd7 {[%clk 0:02:19]} 10. g4 {[%clk 0:02:04]}  Nc5 {[%clk 0:02:07]} 11. Qc2 {[%clk 0:01:51]}  f5 {[%clk 0:01:57]} 12. gxf5 {[%clk 0:01:52]}  gxf5 {[%clk 0:01:58]} 13. O-O-O {[%clk 0:01:52]}  Nba6 {[%clk 0:01:28]} 14. a3 {[%clk 0:01:48]}  fxe4 {[%clk 0:01:19]} 15. Ndxe4 {[%clk 0:01:44]}  Bf5 {[%clk 0:01:13]} 16. Rhg1 {[%clk 0:01:42]}  Nb4 {[%clk 0:01:07]} 17. axb4 {[%clk 0:01:36]}  axb4 {[%clk 0:01:08]} 18. Bf6 {[%clk 0:01:34]}  Bg6 {[%clk 0:01:03]} 19. Bxg7 {[%clk 0:01:27]}  bxc3 {[%clk 0:00:52]} 20. Nxc3 {[%clk 0:01:21]}  Kxg7 {[%clk 0:00:44]} 21. b4 {[%clk 0:01:14]}  Na4 {[%clk 0:00:33]} 22. Bh5 {[%clk 0:01:04]}  Rf6 {[%clk 0:00:21]} 23. Bxg6 {[%clk 0:01:02]}  hxg6 {[%clk 0:00:21]} 24. Ne4 {[%clk 0:00:52]}  Rf4 {[%clk 0:00:19]} 25. Ng5 {[%clk 0:00:48]}  Kh8 {[%clk 0:00:09]} 26. Ne6 {[%clk 0:00:46]}  Rh4 {[%clk 0:00:08]} 27. Rxg6 {[%clk 0:00:32]}  Nb6 {[%clk 0:00:08]} 28. Rdg1 {[%clk 0:00:15]}  Ra1+ {[%clk 0:00:05]} 29. Kb2 {[%clk 0:00:16]}  Rxg1 {[%clk 0:00:05]} 30. Rxg1 {[%clk 0:00:16]}  Rxc4 {[%clk 0:00:04]} 31. Qd2 {[%clk 0:00:15]}  Qh5 {[%clk 0:00:02]} 32. Rg5 {[%clk 0:00:09]}  Qh6 {[%clk 0:00:01]} 33. Rg8+ {[%clk 0:00:09]}  Kh7 {[%clk 0:00:02]} 34. Rh8+ {[%clk 0:00:09]}  Kxh8 {[%clk 0:00:01]} 35. Qxh6+ {[%clk 0:00:10]} 1-0


[Site "https://www.chess.com"]